bitfinex-derivatives/quotes_ETHF0:USTF0_20250704
["timestamp","ask_amount","ask_price","bid_price","bid_amount"]
[1751667918883,5.48705304,2510.2,2510.1,1.50098]
[1751667919084,42.73005304,2510.2,2510.1,1.50098]
[1751667920083,46.70995304,2510.2,2510.1,0.79658]
[1751667921386,46.70995304,2510.2,2510.0,0.79659]
[1751667921583,7.43875304,2510.1,2510.0,0.79659]
[1751667921785,11.41865304,2510.1,2510.0,0.79659]
[1751667923284,48.66165304,2510.1,2510.0,0.79659]
[1751667926085,48.66365304,2510.1,2510.0,0.79659]
[1751667926281,0.6688,2510.5,2510.4,0.79648]
[1751667926587,37.9138,2510.5,2510.4,0.79648]
[1751667926786,47.38075304,2510.5,2510.4,0.79648]
[1751667927387,10.13575304,2510.5,2510.4,0.79648]
[1751667927589,5.48705304,2510.5,2510.4,0.79648]
[1751667927792,42.73205304,2510.5,2510.4,0.79648]
[1751667929394,47.50841304,2510.5,2510.3,0.79649]
[1751667929695,3.9799,2510.3,2510.2,1.45873]
[1751667929893,0.79655,2510.2,2510.1,0.79658]
[1751667930095,3.9799,2510.0,2509.8,2.3456963]
[1751667930287,37.243,2509.9,2509.8,0.79667]
[1751667930488,42.73005304,2509.9,2509.8,0.79667]
[1751667930789,37.243,2509.9,2509.8,0.79667]
[1751667931894,46.70995304,2509.9,2509.7,0.672]
[1751667932193,10.26362304,2509.8,2509.6,0.79672]
[1751667932395,3.9799,2509.7,2509.6,0.79672]
[1751667932595,46.70895304,2509.7,2509.6,0.79672]
[1751667932791,0.79675,2509.6,2509.4,1.49079]
[1751667932989,42.01867,2509.5,2509.3,3.1425163]
[1751667933199,4.77671,2509.4,2509.2,0.79685]
[1751667933498,9.46695304,2509.4,2509.1,1.49089]
[1751667933693,42.73105304,2509.3,2509.2,0.79687]
[1751667933994,46.71095304,2509.3,2509.1,1.49088]
[1751667934197,41.2239,2509.3,2509.2,0.79687]
[1751667934695,9.46695304,2509.3,2509.2,0.79687]
[1751667934896,3.98226,2510.6,2509.2,0.79687]
[1751667934897,11.545,2510.0,2509.2,5.0]
[1751667935091,3.9799,2510.0,2509.9,0.79664]
[1751667935297,5.48705304,2509.9,2509.3,3.6895963]
[1751667935501,5.48705304,2509.9,2509.6,0.79674]
[1751667935502,3.9799,2509.7,2509.6,0.79674]
[1751667935999,2.035,2509.9,2509.8,0.79667]
[1751667936201,39.281,2509.9,2509.8,0.79667]
[1751667936396,48.74795304,2509.9,2509.8,0.79667]
[1751667936900,11.50195304,2509.9,2509.8,0.79667]
[1751667937100,0.7086,2510.2,2510.1,0.79658]
[1751667937302,37.9536,2510.2,2510.1,0.79658]
[1751667937496,47.42055304,2510.2,2510.1,0.79658]
[1751667939502,47.41955304,2510.2,2510.1,0.79658]
[1751667940402,47.41855304,2510.2,2510.1,0.79658]
[1751667941706,48.80575304,2510.2,2510.1,0.79658]
[1751667942608,44.82585304,2510.2,2510.1,0.79658]
[1751667942909,48.80575304,2510.2,2510.1,0.79658]
[1751667943108,48.80575304,2510.2,2510.0,0.7966]
[1751667943310,5.48705304,2510.1,2510.0,0.7966]
[1751667943505,10.83965304,2510.1,2510.0,0.79661]
[1751667944511,10.83965304,2510.1,2509.9,3.8093263]
[1751667944708,46.70795304,2510.0,2509.9,3.8093263]
[1751667945310,42.72805304,2510.0,2509.9,3.8093263]
[1751667946010,42.72605304,2510.0,2509.9,3.8093263]
[1751667947004,5.48705304,2510.0,2509.9,3.8093263]
[1751667947210,12.2337,2510.3,2510.2,0.79655]
[1751667947409,53.4506,2510.3,2510.2,0.79655]
[1751667947602,58.93765304,2510.3,2509.9,3.0126963]
[1751667947808,6.28360304,2510.2,2510.0,0.79658]
[1751667948007,37.237,2510.1,2510.0,0.79658]
[1751667948809,42.72405304,2510.1,2510.0,0.79658]
[1751667949913,47.99935304,2510.1,2510.0,0.79661]
[1751667950118,48.79593304,2510.1,2510.0,0.79661]
[1751667950306,48.79293304,2510.1,2510.0,0.79661]
[1751667950817,47.99635304,2510.1,2510.0,3.1423063]
[1751667951714,47.99635304,2510.1,2510.0,0.79661]
[1751667952312,48.79293304,2510.1,2510.0,0.79661]
[1751667952618,47.99635304,2510.1,2510.0,0.79661]
[1751667953819,47.99435304,2510.1,2510.0,0.79661]
[1751667954521,11.54,2510.4,2510.3,0.79652]
[1751667954720,52.7499,2510.4,2510.3,0.79652]
[1751667954922,58.23695304,2510.4,2510.3,3.1422163]
[1751667956216,46.69595304,2510.4,2510.3,3.1422163]
[1751667956511,9.46695304,2510.4,2510.3,3.1422163]
[1751667956820,46.69495304,2510.4,2510.3,3.1422163]
[1751667957118,0.7166,2510.6,2510.3,2.3456963]
[1751667957420,4.6965,2510.6,2510.5,0.79645]
[1751667957611,41.9225,2510.6,2510.5,0.79645]
[1751667957813,47.40955304,2510.6,2510.5,0.79645]
[1751667958018,47.40955304,2510.6,2510.5,1.44615]
[1751667960718,0.79647,2510.5,2510.2,2.3456963]
[1751667960912,41.2019,2510.4,2510.2,2.3456963]
[1751667961117,46.68895304,2510.4,2510.3,0.79651]
[1751667961424,42.5146,2510.4,2510.3,0.79651]
[1751667961620,48.79815304,2510.4,2510.2,3.1422263]
[1751667961819,5.48705304,2510.3,2510.2,3.1422263]
[1751667962019,6.79975304,2510.3,2510.2,3.1422263]
[1751667966327,6.79975304,2510.3,2510.2,0.79653]
[1751667967523,6.79975304,2510.3,2510.2,3.14318293]
[1751667970930,11.57617304,2510.3,2510.2,2.34665293]
[1751667971131,0.79655,2510.2,2510.1,2.34665293]
[1751667971427,50.17080304,2510.2,2510.1,2.34665293]
[1751667972124,0.79658,2510.1,2510.0,3.14324293]
[1751667972330,7.61793304,2510.1,2510.0,3.14324293]
[1751667972524,11.59783304,2510.1,2510.0,3.14324293]
[1751667972725,10.80125304,2510.1,2510.0,3.14324293]
[1751667973532,11.59783304,2510.1,2510.0,2.34665293]
[1751667973832,11.59783304,2510.1,2510.0,3.14326293]
[1751667974232,10.80125304,2510.1,2510.0,3.14326293]
[1751667975131,11.59783304,2510.1,2510.0,3.14326293]
[1751667975326,10.80125304,2510.1,2510.0,3.14326293]
[1751667977736,11.59783304,2510.1,2510.0,3.14326293]
[1751667977935,10.80125304,2510.1,2510.0,3.14326293]
[1751667978230,5.3142,2510.1,2510.0,3.14326293]
[1751667978436,10.80125304,2510.1,2510.0,3.14326293]
[1751667979432,48.00225304,2510.1,2510.0,3.14326293]
[1751667981441,5.3142,2510.1,2510.0,3.14326293]
[1751667981635,48.00125304,2510.1,2510.0,3.14326293]
[1751667982737,1.364,2510.2,2510.1,0.79658]
[1751667982943,1.3682,2510.7,2510.6,0.79642]
[1751667983144,54.0721,2510.7,2510.6,0.79642]
[1751667983338,59.55915304,2510.7,2510.6,0.79642]
[1751667983843,22.36415304,2510.7,2510.6,0.79642]
[1751667984140,59.55815304,2510.7,2510.6,0.79642]
[1751667987746,10.83515304,2510.7,2510.6,0.79642]
[1751667988043,59.55215304,2510.7,2510.6,0.79642]
[1751667988647,60.34854304,2510.7,2510.6,0.79642]
[1751667988847,59.55215304,2510.7,2510.6,0.79642]
[1751667989446,60.34854304,2510.7,2510.6,0.79642]
[1751667989948,0.79644,2510.6,2510.5,0.79643]
[1751667990150,9.46695304,2510.5,2510.4,3.14313293]
[1751667990448,46.64895304,2510.5,2510.4,0.79648]
[1751667990844,48.08235304,2510.5,2510.4,0.79648]
[1751667991850,48.87882304,2510.5,2510.4,0.79648]
[1751667992347,48.87882304,2510.5,2510.3,0.7965]
[1751667992538,10.18165304,2510.4,2510.3,0.7965]
[1751667992740,12.36783304,2510.4,2510.2,3.14318293]
[1751667992948,42.66805304,2510.3,2510.2,3.14318293]
[1751667993247,44.05775304,2510.3,2510.2,3.14318293]
[1751667993446,44.85427304,2510.3,2510.2,3.14318293]
[1751667994256,44.73315304,2510.3,2510.2,3.14318293]
[1751667995248,45.52967304,2510.3,2510.2,3.14318293]
[1751667996552,44.73315304,2510.3,2510.2,3.14318293]
[1751668002059,49.50957304,2510.3,2510.2,3.14318293]
[1751668002553,48.71305304,2510.3,2510.2,3.14318293]
[1751668003153,49.50957304,2510.3,2510.2,2.34665293]
[1751668003352,0.79655,2510.2,2510.1,0.79658]
[1751668003552,7.69630304,2510.2,2510.1,0.79658]
[1751668003756,11.67620304,2510.2,2510.1,0.79658]
[1751668006355,10.87965304,2510.2,2510.1,0.79658]
[1751668008754,59.54565304,2510.2,2510.1,0.79658]
[1751668008954,60.34220304,2510.2,2510.1,0.79658]
[1751668010058,54.85515,2510.2,2510.1,0.79658]
[1751668010357,60.34220304,2510.2,2510.1,0.79658]
[1751668011461,0.79658,2510.1,2510.0,3.14324293]
[1751668011660,11.63073304,2510.1,2510.0,3.14324293]
[1751668011954,10.83415304,2510.1,2510.0,3.14324293]
[1751668012159,47.98015304,2510.1,2510.0,3.14324293]
[1751668012657,10.83415304,2510.1,2510.0,3.14324293]
[1751668012856,47.98015304,2510.1,2510.0,3.14324293]
[1751668013250,10.83415304,2510.1,2510.0,3.14324293]
[1751668013456,47.97915304,2510.1,2510.0,3.14324293]
[1751668014256,47.97915304,2510.1,2510.0,0.79659]
[1751668017259,42.4921,2510.1,2510.0,0.79659]
[1751668017460,47.97915304,2510.1,2510.0,0.79659]
[1751668017659,9.46695304,2510.1,2510.0,0.79659]
[1751668017858,46.60395304,2510.1,2510.0,0.79659]
[1751668018057,1.3012,2510.5,2510.0,1.99152]
[1751668018258,9.46695304,2510.4,2510.3,0.79652]
[1751668018459,12.2124,2510.7,2510.6,0.79642]
[1751668018760,58.81335304,2510.7,2510.6,0.79642]
[1751668018956,5.48705304,2510.7,2510.6,3.14716415]
[1751668019156,42.62105304,2510.7,2510.6,3.14716415]
[1751668019356,42.62105304,2510.7,2510.6,0.79642]
[1751668021162,5.48705304,2510.7,2510.6,3.14716415]
[1751668021360,42.61505304,2510.7,2510.6,3.14716415]
[1751668021765,42.61505304,2510.7,2510.6,0.79642]
[1751668029570,44.00005304,2510.7,2510.6,0.79642]
[1751668034871,47.97995304,2510.7,2510.6,0.79642]
[1751668038278,42.4929,2510.7,2510.6,0.79642]
[1751668038874,5.3649,2510.7,2510.6,0.79642]
[1751668039079,42.4559,2510.7,2510.6,0.79642]
[1751668043383,47.94295304,2510.7,2510.6,0.79642]
[1751668044488,10.85195304,2510.7,2510.6,0.79642]
[1751668044687,47.93095304,2510.7,2510.6,0.79642]
[1751668045181,10.85195304,2510.7,2510.6,0.79642]
[1751668045386,69.5223,2510.9,2510.8,0.79636]
[1751668045685,110.5762,2510.9,2510.8,0.79636]
[1751668045884,116.06325304,2510.9,2510.8,3.14046777]
[1751668048188,116.06325304,2510.9,2510.8,0.79636]
[1751668048390,116.06325304,2510.9,2510.8,3.14408836]
[1751668048585,67.49625304,2510.9,2510.8,3.14408836]
[1751668048790,99.89705304,2510.9,2510.8,3.14408836]
[1751668048992,99.89705304,2510.9,2510.8,0.79636]
[1751668049797,42.55005304,2510.9,2510.8,0.79636]
[1751668050290,5.48705304,2510.9,2510.8,0.79636]
[1751668050485,42.54805304,2510.9,2510.8,0.79636]
[1751668051387,5.48705304,2510.9,2510.8,0.79636]
[1751668052094,42.54505304,2510.9,2510.8,0.79636]
[1751668054297,42.54505304,2510.9,2510.8,3.1419911]
[1751668054593,42.54505304,2510.9,2510.8,0.79636]
[1751668055194,5.48705304,2510.9,2510.8,0.79636]
[1751668055396,42.53805304,2510.9,2510.8,0.79636]
[1751668055597,5.48705304,2510.9,2510.8,0.79636]
[1751668055899,42.53605304,2510.9,2510.8,0.79636]
[1751668056092,0.6609,2511.1,2511.0,0.79629]
[1751668056292,11.492,2511.4,2511.1,1.99064]
[1751668056491,11.492,2511.4,2511.2,0.79623]
[1751668056492,3.9799,2511.3,2511.2,0.79623]
[1751668056795,46.51195304,2511.3,2511.2,0.79623]
[1751668058299,9.46695304,2511.3,2511.2,0.79623]
[1751668058999,46.50695304,2511.3,2511.2,0.79623]
[1751668060009,9.46695304,2511.3,2511.2,0.79623]
[1751668060298,46.50295304,2511.3,2511.2,0.79623]
[1751668061696,9.46695304,2511.3,2511.2,0.79623]
[1751668061896,46.49895304,2511.3,2511.2,3.13689708]
[1751668062101,11.491,2511.5,2511.4,0.79617]
[1751668062300,48.521,2511.5,2511.4,0.79617]
[1751668064403,2.6244,2511.6,2511.5,0.79614]
[1751668064600,57.351,2511.7,2511.6,0.7961]
[1751668064898,94.375,2511.7,2511.6,0.7961]
[1751668065105,37.023,2511.8,2511.4,2.6425]
[1751668065304,41.0009,2511.8,2511.7,0.79607]
[1751668065700,47.88355304,2511.8,2511.7,0.79607]
[1751668065901,10.86255304,2511.8,2511.7,0.79607]
[1751668066204,47.88155304,2511.8,2511.7,0.79607]
[1751668066606,42.3945,2511.8,2511.7,0.79607]
[1751668066907,47.88155304,2511.8,2511.7,0.79607]
[1751668068303,42.3945,2511.8,2511.7,0.79607]
[1751668068510,47.88155304,2511.8,2511.7,0.79607]
[1751668069204,47.88155304,2511.8,2511.4,2.34066708]
[1751668069510,11.54005304,2511.7,2511.6,0.7961]
[1751668069707,7.56015304,2511.7,2511.6,0.7961]
[1751668069907,11.54005304,2511.7,2511.6,0.7961]
[1751668070602,48.54805304,2511.7,2511.6,0.7961]
[1751668073906,11.54005304,2511.7,2511.6,0.7961]
[1751668074109,1.98968,2512.4,2511.6,0.7961]
[1751668074110,11.468,2512.6,2511.6,6.99027]
[1751668074304,3.9799,2512.3,2512.2,0.7959]
[1751668074711,0.6513,2512.3,2512.2,0.7959]
[1751668077210,1.9826,2512.3,2512.2,0.7959]
[1751668078809,11.44955304,2512.3,2512.0,0.79595]
[1751668079009,47.78425304,2512.2,2512.0,0.79595]
[1751668079311,1.3313,2512.1,2512.0,0.79595]
[1751668080215,10.79825304,2512.1,2512.0,0.79598]
[1751668080515,10.79825304,2512.1,2511.9,0.79599]
[1751668080718,11.57925304,2512.0,2511.9,0.79599]
[1751668080915,6.0922,2512.0,2511.9,0.79599]
[1751668081214,2.1123,2512.0,2511.9,0.79599]
[1751668082716,0.7035,2512.0,2511.9,0.79599]
[1751668084318,6.19055304,2512.0,2511.9,0.79599]
[1751668085516,38.4164,2512.2,2512.1,0.79594]
[1751668085818,47.88335304,2512.2,2512.1,0.79594]
[1751668087117,9.46695304,2512.2,2512.1,0.79594]
[1751668087319,0.6808,2512.3,2512.2,0.79591]
[1751668087620,4.6607,2512.3,2512.2,0.79591]
[1751668087812,10.14775304,2512.3,2512.2,0.79591]
[1751668088517,11.49875304,2512.3,2512.2,0.79591]
[1751668089815,0.6808,2512.3,2512.2,0.79591]
[1751668093621,2.0474,2512.3,2511.9,3.12547702]
[1751668093817,2.0474,2512.3,2512.2,0.79591]
[1751668102322,7.53445304,2512.3,2512.2,0.79591]
[1751668103219,11.51435304,2512.3,2512.2,0.79591]
[1751668104723,11.51435304,2512.3,2512.0,3.12547702]
[1751668104922,3.9799,2512.1,2512.0,0.79597]
[1751668105421,10.83085304,2512.1,2512.0,0.79597]
[1751668109127,1.3639,2512.1,2512.0,0.79597]
[1751668109323,0.6808,2512.3,2512.2,0.79591]
[1751668109525,10.14775304,2512.3,2512.2,0.79591]
[1751668109828,5.48705304,2512.3,2512.2,0.79591]
[1751668111627,9.46695304,2512.3,2512.1,3.12547702]
[1751668111833,11.43575304,2512.2,2512.0,0.79596]
[1751668112020,1.2923,2512.1,2512.0,0.79596]
[1751668112226,10.75925304,2512.1,2511.7,3.12547702]
[1751668112426,3.9799,2511.8,2511.7,3.92154702]
[1751668112931,1.2923,2512.0,2511.9,0.79601]
[1751668113627,10.75925304,2512.0,2511.9,0.79601]
[1751668121941,0.79603,2511.9,2511.5,5.11581702]
[1751668122136,9.11208304,2511.9,2511.8,0.79602]
[1751668122336,3.62503,2511.9,2511.8,0.79602]
[1751668122537,13.09198304,2511.9,2511.8,0.79602]
[1751668124035,0.79606,2511.8,2511.7,0.79606]
[1751668124235,0.79609,2511.7,2511.6,0.79609]
[1751668124440,6.28314304,2511.7,2511.6,0.79609]
[1751668124635,11.57014304,2511.7,2511.6,0.79609]
[1751668125437,10.77405304,2511.7,2511.6,0.79609]
[1751668126037,11.57012304,2511.7,2511.6,0.79609]
[1751668127044,10.77405304,2511.7,2511.1,3.12547702]
[1751668127339,3.9799,2511.2,2511.1,3.92173702]
[1751668127731,12.12065304,2511.2,2511.1,0.79626]
[1751668129034,10.81165304,2511.2,2511.1,0.79626]
[1751668136747,5.3246,2511.2,2511.1,0.79626]
[1751668136944,10.81165304,2511.2,2511.1,0.79626]
[1751668139447,5.3246,2511.2,2511.1,0.79626]
[1751668140452,10.81165304,2511.2,2511.1,0.79626]
[1751668141449,12.22702,2511.9,2511.1,5.0]
[1751668141651,3.9799,2511.6,2511.5,0.79614]
[1751668142049,2.0959,2511.8,2511.7,0.79607]
[1751668142256,12.1044,2511.8,2511.7,0.79607]
[1751668142449,58.43535304,2511.8,2511.7,0.79607]
[1751668143053,58.43435304,2511.8,2511.3,2.0551]
[1751668143254,9.46695304,2511.7,2511.6,0.7961]
[1751668143758,5.48705304,2511.7,2511.6,0.7961]
[1751668144557,9.46695304,2511.7,2511.6,0.7961]
[1751668144755,10.82795304,2511.7,2511.6,0.7961]
[1751668147458,9.46695304,2511.7,2511.6,0.7961]
[1751668147855,46.31795304,2511.7,2511.6,0.7961]
[1751668148755,9.46695304,2511.7,2511.6,0.7961]
[1751668148956,46.31595304,2511.7,2511.6,0.7961]
[1751668149557,9.46695304,2511.7,2511.6,0.7961]
[1751668149759,46.31495304,2511.7,2511.6,0.7961]
[1751668150356,9.46695304,2511.7,2511.6,0.7961]
[1751668150565,11.43,2512.0,2511.9,0.79601]
[1751668150859,15.4099,2512.0,2511.9,0.79601]
[1751668151062,57.74095304,2512.0,2511.9,0.79601]
[1751668152763,53.75805304,2512.0,2511.9,0.79601]
[1751668154161,57.73795304,2512.0,2511.9,0.79601]
[1751668154863,59.14375304,2512.0,2511.9,0.79601]
[1751668156664,59.13075304,2512.0,2511.9,0.79601]
[1751668156864,57.72495304,2512.0,2511.9,0.79601]
[1751668160471,59.02775304,2512.0,2511.9,0.79601]
[1751668171380,53.5407,2512.0,2511.9,0.79601]
[1751668172483,59.02775304,2512.0,2511.9,0.79601]
[1751668175575,10.76975304,2512.0,2511.9,0.79601]
[1751668175886,5.48705304,2512.0,2511.9,0.79601]
[1751668176086,53.68505304,2512.0,2511.9,0.79601]
[1751668176979,53.68205304,2512.0,2511.9,0.79601]
[1751668180385,53.67505304,2512.0,2511.9,0.79601]
[1751668184990,48.188,2512.0,2511.9,0.79601]
[1751668185190,53.67505304,2512.0,2511.9,0.79601]
[1751668185789,5.48705304,2512.0,2511.9,0.79601]
[1751668185991,53.66405304,2512.0,2511.9,0.79601]
[1751668188391,5.48705304,2512.0,2511.9,0.79601]
[1751668188689,53.65905304,2512.0,2511.9,0.79601]
[1751668190094,48.172,2512.0,2511.9,0.79601]
[1751668190293,53.65905304,2512.0,2511.9,0.79601]
[1751668192604,48.172,2512.0,2511.9,0.79601]
[1751668192895,53.65905304,2512.0,2511.9,0.79601]
[1751668196395,57.63895304,2512.0,2511.9,0.79601]
[1751668196596,58.93745304,2512.0,2511.9,0.79601]
[1751668199801,53.4504,2512.0,2511.9,0.79601]
[1751668200100,58.93745304,2512.0,2511.9,0.79601]
[1751668202104,53.4504,2512.0,2511.9,0.79601]
[1751668202303,58.93745304,2512.0,2511.9,0.79601]
[1751668204303,10.76545304,2512.0,2511.9,0.79601]
[1751668204502,58.88745304,2512.0,2511.9,0.79601]
[1751668205599,10.76545304,2512.0,2511.9,0.79601]
[1751668205803,53.60605304,2512.0,2511.9,0.79601]
[1751668207108,0.7006,2512.1,2512.0,0.79598]
[1751668207308,48.8166,2512.1,2512.0,0.79598]
[1751668207707,48.8126,2512.1,2512.0,0.79598]
[1751668209505,59.63075304,2512.1,2512.0,0.79598]
[1751668212005,59.63075304,2512.1,2511.7,3.81027702]
[1751668212204,3.9799,2511.8,2511.7,3.92154702]
[1751668212508,40.6939,2511.8,2511.7,3.92154702]
[1751668212706,42.20105304,2511.8,2511.7,3.92154702]
[1751668212908,46.18095304,2511.8,2511.7,3.92154702]
[1751668213105,47.50525304,2511.8,2511.7,3.92154702]
[1751668213601,47.50525304,2511.8,2511.7,0.79607]
[1751668213806,47.50525304,2511.8,2511.6,3.92156702]
[1751668214010,10.77495304,2511.7,2511.6,3.92156702]
[1751668214205,10.77495304,2511.7,2511.6,0.79609]
[1751668214610,11.57104304,2511.7,2511.5,3.92159702]
[1751668214810,48.83115304,2511.6,2511.5,3.92159702]
[1751668217915,60.22015304,2511.6,2511.5,0.79612]
[1751668219118,60.22015304,2511.6,2511.3,3.12547702]
[1751668219415,49.4452,2511.6,2511.5,0.79614]
[1751668219613,54.93225304,2511.6,2511.5,0.79614]
[1751668219812,59.70825304,2511.6,2511.5,0.79614]
[1751668221119,54.2212,2511.6,2511.5,0.79614]
[1751668221318,59.70825304,2511.6,2511.5,0.79614]
[1751668221618,59.70825304,2511.6,2511.4,0.79614]
[1751668221816,46.16595304,2511.5,2511.4,0.79617]
[1751668224019,9.46695304,2511.5,2511.4,0.79617]
[1751668224220,46.16195304,2511.5,2511.4,0.79617]
[1751668226812,46.16095304,2511.5,2511.4,0.79617]
[1751668231328,40.6739,2511.5,2511.4,0.79617]
[1751668232427,15.3509,2511.5,2511.4,0.79617]
[1751668232627,53.3629,2511.5,2511.4,0.79617]
[1751668233229,5.3119,2511.5,2511.4,0.79617]
[1751668233729,16.6829,2511.5,2511.4,0.79617]
[1751668235324,53.3609,2511.5,2511.4,0.79617]
[1751668236329,58.84795304,2511.5,2511.4,0.79617]
[1751668240938,5.48705304,2511.5,2511.4,0.79617]
[1751668241140,57.331,2512.0,2511.9,0.79601]
[1751668241340,105.366,2512.0,2511.9,0.79601]
[1751668241540,114.83295304,2512.0,2511.9,0.79601]
[1751668241841,114.83195304,2512.0,2511.9,0.79601]
[1751668243138,66.79795304,2512.0,2511.9,0.79601]
[1751668243338,114.83095304,2512.0,2511.9,0.79601]
[1751668244234,116.13185304,2512.0,2511.9,0.79601]
[1751668244537,116.12985304,2512.0,2511.9,0.79601]
[1751668245339,68.10085304,2512.0,2511.9,0.79601]
[1751668245544,116.12685304,2512.0,2511.9,0.79601]
[1751668246039,68.10085304,2512.0,2511.9,0.79601]
[1751668246338,116.12485304,2512.0,2511.9,0.79601]
[1751668246943,116.12485304,2512.0,2511.7,0.6913]
[1751668246944,116.92085304,2512.0,2511.8,0.79603]
[1751668247139,7.58175304,2511.9,2511.8,0.79603]
[1751668247341,11.56165304,2511.9,2511.8,0.79603]
[1751668250944,6.87061,2511.9,2511.8,0.79603]
[1751668251139,12.35766304,2511.9,2511.8,0.79603]
[1751668251340,0.79604,2511.8,2511.6,0.79608]
[1751668251541,37.44207,2511.7,2511.6,0.79608]
[1751668251740,46.90902304,2511.7,2511.6,0.79608]
[1751668251944,48.26852304,2511.7,2511.6,0.79608]
[1751668253246,59.63952304,2511.7,2511.6,0.79608]
[1751668253448,58.84345304,2511.7,2511.6,0.79608]
[1751668255242,10.82645304,2511.7,2511.6,0.79608]
[1751668255444,58.81345304,2511.7,2511.6,0.79608]
[1751668260750,10.82645304,2511.7,2511.6,0.79608]
[1751668260951,58.80245304,2511.7,2511.6,0.79608]
[1751668261952,58.79858472,2511.7,2511.6,0.79608]
[1751668262449,57.43908472,2511.7,2511.6,0.79608]
[1751668263251,9.46308472,2511.7,2511.6,0.79608]
[1751668263454,57.43708472,2511.7,2511.6,0.79608]
[1751668264148,9.46308472,2511.7,2511.6,0.79608]
[1751668264450,57.43308472,2511.7,2511.6,0.79608]
[1751668270454,58.09248472,2511.7,2511.6,0.79608]
[1751668274055,60.28205472,2511.7,2511.6,0.79608]
[1751668274256,59.48598472,2511.7,2511.6,0.79608]
[1751668277663,11.51598472,2511.7,2511.6,0.79608]
[1751668277865,58.07248472,2511.7,2511.6,0.79608]
[1751668280262,53.42618472,2511.7,2511.6,0.79608]
[1751668281461,5.48318472,2511.7,2511.6,0.79608]
[1751668281661,68.684,2512.0,2511.9,0.79601]
[1751668281860,110.75318472,2512.0,2511.9,0.79601]
[1751668282155,62.81418472,2512.0,2511.9,0.79601]
[1751668282367,110.75218472,2512.0,2511.9,0.79601]
[1751668288566,62.81418472,2512.0,2511.9,0.79601]
[1751668288768,110.71818472,2512.0,2511.9,0.79601]
[1751668289873,62.81418472,2512.0,2511.9,0.79601]
[1751668290075,110.71518472,2512.0,2511.9,0.79601]
[1751668291473,62.81418472,2512.0,2511.9,0.79601]
[1751668291674,110.71118472,2512.0,2511.9,0.79601]
[1751668292276,62.81418472,2512.0,2511.9,0.79601]
[1751668292474,110.71118472,2512.0,2511.9,0.79601]
[1751668292672,62.81418472,2512.0,2511.9,0.79601]
[1751668292872,110.70918472,2512.0,2511.9,0.79601]
[1751668297177,53.37818472,2512.0,2511.9,0.79601]
[1751668299883,53.36618472,2512.0,2511.9,0.79601]
[1751668300777,57.34608472,2512.0,2511.9,0.79601]
[1751668300974,9.46308472,2512.0,2511.9,0.79601]
[1751668301280,11.333,2512.5,2512.4,0.79585]
[1751668301471,11.333,2512.5,2512.3,0.7161]
[1751668301673,46.00808472,2512.4,2512.3,1.51198]
[1751668302177,42.02818472,2512.4,2512.3,1.51198]
[1751668304383,42.02318472,2512.4,2512.3,1.51198]
[1751668304786,2.6709,2512.8,2512.7,0.79575]
[1751668304984,50.5419,2512.8,2512.7,0.79575]
[1751668305186,60.00498472,2512.8,2512.7,0.79575]
[1751668305387,12.13398472,2512.8,2512.7,0.79575]
[1751668305587,60.00198472,2512.8,2512.7,0.79575]
[1751668305888,58.68668472,2512.8,2512.7,0.79575]
[1751668306084,22.15168472,2512.8,2512.7,0.79575]
[1751668306285,58.68668472,2512.8,2512.7,0.79575]
[1751668306988,9.46308472,2512.8,2512.7,0.79575]
[1751668307189,45.99608472,2512.8,2512.7,0.79575]
[1751668307987,46.66908472,2512.8,2512.7,0.79575]
[1751668308890,48.81881472,2512.8,2512.5,0.79579]
[1751668309091,3.9799,2512.5,2512.4,0.79585]
[1751668309291,40.5069,2512.5,2512.4,0.79585]
[1751668309488,45.99008472,2512.5,2512.4,0.79585]
[1751668309894,46.65218472,2512.5,2512.4,0.79585]
[1751668310192,46.65218472,2512.5,2512.2,0.31972084]
[1751668310391,6.83718472,2512.4,2512.3,0.79588]
[1751668310590,10.81708472,2512.4,2512.3,0.79588]
[1751668310789,10.81708472,2512.4,2511.9,3.12547702]
[1751668310992,37.1891,2512.5,2511.9,3.12547702]
[1751668310993,47.28948472,2512.3,2512.2,0.79589]
[1751668311287,41.8063,2512.3,2512.2,0.79589]
[1751668311490,47.28948472,2512.3,2512.2,0.79589]
[1751668312487,47.28948472,2512.3,2511.7,3.83947702]
[1751668312687,3.9799,2512.0,2511.7,0.714]
[1751668312992,40.4999,2512.0,2511.9,0.79601]
[1751668313188,42.00318472,2512.0,2511.9,0.79601]
[1751668315593,41.99918472,2512.0,2511.9,0.79601]
[1751668318192,43.33208472,2512.0,2511.8,0.79602]
[1751668318597,1.3329,2511.9,2511.8,0.79602]
[1751668319098,1.3329,2511.9,2511.8,0.79604]
[1751668320293,36.516,2512.0,2511.9,0.79601]
[1751668320598,41.99918472,2512.0,2511.9,0.79601]
[1751668320900,1.3678,2512.1,2512.0,0.79598]
[1751668321098,37.8768,2512.1,2512.0,0.79598]
[1751668321496,10.83088472,2512.1,2511.9,0.796]
[1751668321697,43.28798472,2512.0,2511.9,0.796]
[1751668323602,47.26788472,2512.0,2511.9,0.796]
[1751668325302,36.509,2512.0,2511.9,0.796]
[1751668325501,1.3678,2512.1,2512.0,0.79598]
[1751668325696,0.676,2512.1,2512.0,0.79598]
[1751668325897,11.315,2512.3,2512.2,0.79591]
[1751668326203,11.315,2512.3,2512.0,0.79598]
[1751668326204,0.7066,2512.4,2512.3,0.79588]
[1751668326404,46.67168472,2512.4,2512.3,0.79588]
[1751668327303,46.67068472,2512.4,2512.3,0.79588]
[1751668329201,2.0977,2512.6,2512.5,0.79582]
[1751668329405,59.37178472,2512.6,2512.5,0.79582]
[1751668329902,59.37078472,2512.6,2512.5,0.79582]
[1751668331907,7.58088472,2512.6,2512.5,0.79582]
[1751668332204,0.686,2512.6,2512.5,0.79582]
[1751668332406,36.49,2512.6,2512.5,0.79582]
[1751668336802,2.016,2512.8,2512.7,0.79575]
[1751668337001,38.498,2512.8,2512.7,0.79575]
[1751668337200,47.96108472,2512.8,2512.7,0.79575]
[1751668337606,59.27308472,2512.8,2512.7,0.79575]
[1751668338301,53.7899,2512.8,2512.7,0.79575]